Cogmind - Beta 14 @@@ ROGUE MODE // 2024.09.20 @ 22:28:01 Player: ZarZap Result: Destroyed by H-55 Commando with Gauss Rifle Performance ------------- Evolutions (2) 1000 Regions Visited (6) 1200 Robots Destroyed (36) 180 Value Destroyed (944) 944 Prototype IDs (1) 20 Alien Tech Used (0) 0 Bonus (34) 34 TOTAL SCORE: 3378 Bonus ------- Follower Combat Kills 55 Friendly Fire -21 Cogmind --------- Core Integrity 0/550 Matter 293/300 Energy 98/100 System Corruption 0% Temperature Warm (116) Movement Core (1350) Ox26 Location -8/Materials Parts ------- > --- POWER (1) -------- (None) > --- PROPULSION (4) --- (None) > --- UTILITY (3) ------ Huge Storage Unit Signal Interpreter Advanced Targeting Computer > --- WEAPON (3) ------- (None) > --- INVENTORY (25) --- Ion Engine Light Nuclear Core Aluminum Leg Aluminum Leg Compact Wheel Beam Cannon Peak State ------------ > --- POWER ------------ Light Angular Momentum Engine > --- PROPULSION ------- Compact Wheel Compact Wheel > --- UTILITY ---------- Huge Storage Unit Signal Interpreter Advanced Targeting Computer > --- WEAPON ----------- Advanced Beam Rifle Grenade Launcher Mini Grenade Launcher > --- INVENTORY -------- Ion Engine Light Nuclear Core Aluminum Leg Aluminum Leg Compact Wheel Beam Cannon Beam Cannon Light Assault Rifle [Rating: 20] Favorites ----------- Power Ion Engine Engine Ion Engine Power Core Light Nuclear Core Propulsion Compact Wheel Leg Aluminum Leg Wheel Compact Wheel Hover Unit Hover Unit Flight Unit Flight Unit Utility Huge Storage Unit Device Cooling System Storage Huge Storage Unit Processor Signal Interpreter Weapon Light Cannon Energy Gun Small Laser Energy Cannon Beam Cannon Ballistic Gun Light Assault Rifle Ballistic Cannon Light Cannon Launcher Mini Grenade Launcher Build | -11 -10 -9 -9 -9 -8 -8 ------- Run | Yrd Mat Mat Min Exi Min Mat Slots Evolved 4 | . . 2 . . . 2 Power . | . . . . . . . Propulsion 2 | . . 2 . . . . Utility 1 | . . . . . . 1 Weapon 1 | . . . . . . 1 Parts Attached 51 | 2 12 9 4 . 7 17 Power 4 | . 1 . 1 . 1 1 Engine 3 | . 1 . 1 . . 1 Core 1 | . . . . . 1 . Reactor . | . . . . . . . Propulsion 20 | 2 5 7 . . 5 1 Treads . | . . . . . . . Leg 2 | . 2 . . . . . Wheel 15 | 2 . 7 . . 5 1 Hover 2 | . 2 . . . . . Flight 1 | . 1 . . . . . Utility 6 | . 2 1 1 . . 2 Device 2 | . 1 1 . . . . Storage 1 | . 1 . . . . . Processor 3 | . . . 1 . . 2 Hackware . | . . . . . . . Protection . | . . . . . . . Artifact . | . . . . . . . Weapon 21 | . 4 1 2 . 1 13 Energy Gun 8 | . 2 . 1 . 1 4 Energy Cannon 2 | . . . . . . 2 Ballistic Gun 2 | . . . . . . 2 Ballistic Cannon 4 | . 1 1 1 . . 1 Launcher 5 | . 1 . . . . 4 Special Weapon . | . . . . . . . Impact Weapon . | . . . . . . . Slashing Weapon . | . . . . . . . Piercing Weapon . | . . . . . . . Special Melee Weapon . | . . . . . . . Unidentified Prototypes 1 | . . . . . . 1 Parts Lost 24 | . 2 4 . . 5 13 Power 3 | . . 1 . . . 2 Propulsion 11 | . 1 1 . . 4 5 Utility 1 | . 1 . . . . . Weapon 9 | . . 2 . . 1 6 Highest Loss Streak 8 | . 1 4 . . 4 8 To Critical Strikes . | . . . . . . . Average Slot Usage (%) 90 | . 86 84 100 100 87 75 Engine 8 | . 14 10 11 11 2 2 Core 2 | . . . . . 8 1 Wheel 31 | . 11 18 44 44 36 22 Hover 2 | . 7 14 . . . . Device 2 | . 6 8 9 . . . Storage 11 | . 14 11 11 11 11 9 Processor 8 | . . . 2 11 11 16 Energy Gun 11 | . 20 10 11 11 6 11 Ballistic Cannon 9 | . 7 11 11 11 11 4 Peak Build Rating 20 | 6 7 11 10 9 11 20 Average Rating 9 | 6 6 8 9 9 9 12 On Entrance 7 | 6 6 6 7 9 9 11 Naked Turns . | . . . . . . . Heaviest Build 96 | 10 92 93 91 89 89 96 Greatest Support 58 | 32 32 58 58 58 58 46 Greatest Overweight (x) 28 | . 22 7 1 1 5 28 Average Overweight (x) 1 | . 2 2 1 1 1 2 Largest Inventory Capacity 25 | 8 25 25 25 25 25 25 Average Capacity 24 | 8 19 25 25 25 25 25 Most Carried 8 | 6 5 7 6 6 7 8 Average Carried 5 | 4 4 5 4 5 6 6 Final Capacity 25 | 8 25 25 25 25 25 25 Final Carried 7 | 2 5 7 5 6 6 6 Class Distribution -------------------- 60% | Scavenger-Mutant 29% | Mutant 8% | Gunner Dominant Class ---------------- Mutant | -10/Materials Mutant | -9/Materials Scavenger-Mutant | -9/Mines Scavenger-Mutant | -9/Exiles Scavenger-Mutant | -8/Mines Gunner | -8/Materials Resources | -11 -10 -9 -9 -9 -8 -8 ----------- Run | Yrd Mat Mat Min Exi Min Mat Matter Collected 1042 | 200 152 112 . 87 247 244 Remotely . | . . . . . . . Salvage Created 1251 | . 303 265 . 81 193 409 Parts 62 | . 13 21 . 2 10 16 Haulers Intercepted . | . . . . . . . Recyclers Shooed 4 | . 1 1 . . 1 1 Parts Field Recycled . | . . . . . . . Retrieved Matter . | . . . . . . . Parts Self-Destructed . | . . . . . . . Prevented . | . . . . . . . Kills | -11 -10 -9 -9 -9 -8 -8 ------- Run | Yrd Mat Mat Min Exi Min Mat Combat Hostiles Destroyed 24 | . 6 7 . 1 2 8 Guns 9 | . 2 3 . 1 . 3 Cannons 13 | . 4 4 . . 2 3 AOE 2 | . . . . . . 2 Classes Destroyed 7 | . 4 1 . . 2 . Worker 2 | . 1 1 . . . . Builder 2 | . . . . . 2 . Tunneler 1 | . . . . . 1 . Recycler 5 | . 1 2 . . 1 1 Watcher 2 | . 1 . . . . 1 Swarmer 6 | . . 6 . . . . Grunt 18 | . 6 1 . 1 2 8 Best Kill Streak 5 | . 5 5 . 1 2 4 Combat Bots Only 4 | . 4 4 . 1 1 3 Max Kills in Single Turn 1 | . 1 1 . 1 1 1 Gunslinging . | . . . . . . . Exploded 1 | . . . . . . 1 Melee . | . . . . . . . Uniques/NPCs Destroyed . | . . . . . . . Combat | -11 -10 -9 -9 -9 -8 -8 -------- Run | Yrd Mat Mat Min Exi Min Mat Hostile Shots Fired 233 | . 28 77 . . 23 105 Missed 57 | . 6 25 . . 6 20 Damage Taken 2603 | . 324 511 . . 274 1494 Core 838 | . 75 118 . . 81 564 Absorbed by Shields . | . . . . . . . Core Remaining (%) 73 | 100 70 . . . 50 . Volleys Fired 130 | . 23 24 . 13 38 32 Largest 3 | . 2 2 . 2 2 3 Hottest 141 | . 90 89 . 75 75 141 Shots Fired 249 | . 43 46 . 26 51 83 Gun 136 | . 34 22 . 13 13 54 Cannon 108 | . 8 24 . 13 38 25 Launcher 5 | . 1 . . . . 4 Special . | . . . . . . . Kinetic 113 | . 8 24 . 13 38 30 Thermal 128 | . 34 22 . 13 13 46 Explosive 5 | . 1 . . . . 4 Electromagnetic 3 | . . . . . . 3 Robot Hit Streak 8 | . 6 6 . 2 8 8 Robot Miss Streak 4 | . 2 4 . 1 2 3 Penetration Max . | . . . . . . . Secondary Targets . | . . . . . . . Shots Hit Robots 146 | . 27 22 . 6 35 56 Core Hits 67 | . 16 13 . 2 10 26 Critical Kills . | . . . . . . . Critical Parts Destroyed . | . . . . . . . Critical Strikes 5 | . . 1 . . 2 2 Burn 1 | . . 1 . . . . Blast 3 | . . . . . 2 1 Corrupt 1 | . . . . . . 1 Melee Attacks . | . . . . . . . Impact . | . . . . . . . Slashing . | . . . . . . . Piercing . | . . . . . . . Sneak Attacks . | . . . . . . . Combat Hostiles . | . . . . . . . Follow-up Attacks . | . . . . . . . Damage Inflicted 2568 | . 381 380 . 83 604 1120 Guns 1025 | . 239 152 . 44 110 480 Cannons 1170 | . 119 217 . 39 480 315 Explosions 339 | . 23 . . . . 316 Melee . | . . . . . . . Ramming 34 | . . 11 . . 14 9 Kinetic 1076 | . 119 217 . 39 480 221 Thermal 1087 | . 239 152 . 44 110 542 Explosive 339 | . 23 . . . . 316 Electromagnetic 32 | . . . . . . 32 Impact . | . . . . . . . Slashing . | . . . . . . . Piercing . | . . . . . . . Highest Corruption . | . . . . . . . Average Corruption . | . . . . . . . Corruption Purged . | . . . . . . . Corruption Blocked . | . . . . . . . Overload Shots . | . . . . . . . Overflow Damage 9 | . . . . . 9 . Projectiles 9 | . . . . . 9 . Explosions . | . . . . . . . Melee . | . . . . . . . Knockbacks 15 | . . 1 . . 11 3 Impact 1 | . . . . . . 1 Kinetic 14 | . . 1 . . 11 2 Secondary . | . . . . . . . Self-Inflicted Damage 77 | . . 5 . . 7 65 Shots 2 | . . . . . . 2 Rammed 5 | . . 1 1 . 1 2 Targets Rammed 5 | . . 1 1 . 1 2 Kicked . | . . . . . . . Crushed . | . . . . . . . Highest Temperature 371 | . 273 . . 30 115 371 Average Temperature 91 | . 80 . . 12 44 136 Received Heat Transfer 1212 | . 177 180 . . 162 693 Siege Activations . | . . . . . . . Robots Corrupted . | . . . . . . . Combat Hostiles . | . . . . . . . Parts Fried . | . . . . . . . Impact Corruptions . | . . . . . . . Robots Melted . | . . . . . . . Combat Hostiles . | . . . . . . . Parts Melted 4 | . 2 . . . . 2 Heat Transferred 2639 | . 608 518 . 100 250 1163 Parts Sabotaged . | . . . . . . . Parts Stolen . | . . . . . . . Parts Stripped . | . . . . . . . Power Chain Reactions . | . . . . . . . Alert | -11 -10 -9 -9 -9 -8 -8 ------- Run | Yrd Mat Mat Min Exi Min Mat Peak Influence 227 | . 174 211 70 . 174 227 Initial 70 | . . . 70 . . 1 Average 75 | . 58 54 70 . 77 119 Maximum Alert Level 1 | . . 1 . . . 1 Low Security (%) 96 | 100 100 97 100 . 100 83 Level 1 3 | . . 2 . . . 16 Level 2 . | . . . . . . . Level 3 . | . . . . . . . Level 4 . | . . . . . . . Level 5 . | . . . . . . . High Security . | . . . . . . . Max Security . | . . . . . . . Squads Dispatched 3 | . 1 1 . . . 1 Investigation 1 | . . . . . . 1 Extermination . | . . . . . . . Reinforcement 2 | . 1 1 . . . . Assault . | . . . . . . . Garrison . | . . . . . . . Intercept . | . . . . . . . Searches Triggered . | . . . . . . . Construction Impeded . | . . . . . . . Haulers Reinforced . | . . . . . . . Active Scanning Responses . | . . . . . . . Cargo Convoy Interrupts . | . . . . . . . Stealth | -11 -10 -9 -9 -9 -8 -8 --------- Run | Yrd Mat Mat Min Exi Min Mat Distress Signals 4 | . . 3 . . . 1 Communications Jammed . | . . . . . . . Distress Signals . | . . . . . . . Times Spotted 41 | . 8 13 . . 6 14 Peak Tracking Total 7 | . 2 7 . . 4 4 Tactical Retreats 2 | . . 1 . . 1 . Traps | -11 -10 -9 -9 -9 -8 -8 ------- Run | Yrd Mat Mat Min Exi Min Mat Traps Triggered 2 | . 1 . . . . 1 Indirectly . | . . . . . . . Trap Hack Attempts . | . . . . . . . Triggered . | . . . . . . . Disarmed . | . . . . . . . Reprogrammed . | . . . . . . . Reused . | . . . . . . . Traps Extracted . | . . . . . . . Installed . | . . . . . . . Triggered . | . . . . . . . Machines | -11 -10 -9 -9 -9 -8 -8 ---------- Run | Yrd Mat Mat Min Exi Min Mat Machines Disabled 3 | . . 2 . . . 1 Max in Single Turn 1 | . . 1 . . . 1 Machines Repaired . | . . . . . . . Machines Dismantled . | . . . . . . . Machines Sabotaged . | . . . . . . . Overloaded Fab Kills . | . . . . . . . Hacking | -11 -10 -9 -9 -9 -8 -8 --------- Run | Yrd Mat Mat Min Exi Min Mat Machines Accessed 1 | . . . . . 1 . Terminals 1 | . . . . . 1 . Fabricators . | . . . . . . . Repair Stations . | . . . . . . . Recycling Units . | . . . . . . . Scanalyzers . | . . . . . . . Garrison Access . | . . . . . . . Total Hacks 1 | . . . . . 1 . Successful 1 | . . . . . 1 . Failed . | . . . . . . . Catastrophic . | . . . . . . . Database Lockouts . | . . . . . . . Manual . | . . . . . . . Terminals 1 | . . . . . 1 . Fabricators . | . . . . . . . Repair Stations . | . . . . . . . Recycling Units . | . . . . . . . Scanalyzers . | . . . . . . . Garrison Access . | . . . . . . . Terminal Hacks 1 | . . . . . 1 . Zone Layout 1 | . . . . . 1 . Fabricator Hacks . | . . . . . . . Repair Station Hacks . | . . . . . . . Recycling Unit Hacks . | . . . . . . . Scanalyzer . | . . . . . . . Garrison Access Hacks . | . . . . . . . Unauthorized Hacks . | . . . . . . . Terminals . | . . . . . . . Fabricators . | . . . . . . . Repair Stations . | . . . . . . . Recycling Units . | . . . . . . . Scanalyzers . | . . . . . . . Garrison Access . | . . . . . . . Data Cores Recovered . | . . . . . . . Used . | . . . . . . . Hacking Detections . | . . . . . . . Full Trace Events . | . . . . . . . Feedback Events . | . . . . . . . Feedback Blocked . | . . . . . . . Robot Schematics Acquired . | . . . . . . . Robots Built . | . . . . . . . Authchips . | . . . . . . . Time . | . . . . . . . Total Robot Build Rating . | . . . . . . . Part Schematics Acquired . | . . . . . . . Parts Built . | . . . . . . . Authchips . | . . . . . . . Time . | . . . . . . . Total Part Build Rating . | . . . . . . . Parts Repaired . | . . . . . . . Time . | . . . . . . . Parts Recycled . | . . . . . . . Recycled Matter . | . . . . . . . Retrieved Matter . | . . . . . . . Retrieved Components . | . . . . . . . Parts Scanalyzed . | . . . . . . . Part Schematics Acquired . | . . . . . . . Parts Damaged . | . . . . . . . Bothacking | -11 -10 -9 -9 -9 -8 -8 ------------ Run | Yrd Mat Mat Min Exi Min Mat Used RIF Installer . | . . . . . . . Robots Hacked . | . . . . . . . Non-combat . | . . . . . . . Combat . | . . . . . . . Robot Hacks Applied . | . . . . . . . Relay Couplers Released . | . . . . . . . Fabnet Peak Effective % . | . . . . . . . Robots Rewired 2 | . . . . 2 . . Allies Hacked . | . . . . . . . Hacks Repelled . | . . . . . . . Allies | -11 -10 -9 -9 -9 -8 -8 -------- Run | Yrd Mat Mat Min Exi Min Mat Total Allies 2 | . . . . 2 . . Largest Group 2 | . . . . 2 2 . Highest-Rated Group 29 | . . . . 29 26 . Highest-Rated Ally 21 | . . . . 21 18 . Total Orders . | . . . . . . . Ally Attacks 17 | . . . . . 17 . Total Damage 345 | . . . . . 345 . Kills 5 | . . . . . 5 . Allies Corrupted . | . . . . . . . Allies Melted . | . . . . . . . Intel | -11 -10 -9 -9 -9 -8 -8 ------- Run | Yrd Mat Mat Min Exi Min Mat Robot Analysis Total . | . . . . . . . Derelict Logs Recovered . | . . . . . . . Drone Launches . | . . . . . . . Drone Recoveries . | . . . . . . . Exploration | -11 -10 -9 -9 -9 -8 -8 ------------- Run | Yrd Mat Mat Min Exi Min Mat Turns Passed 3110 | 6 517 352 112 1094 657 372 Spaces Moved 1674 | 1 202 124 96 595 490 166 Core 1 | . . . . . . 1 Treads . | . . . . . . . Legs 7 | . 7 . . . . . Wheels 1599 | 1 163 89 96 595 490 165 Hover 65 | . 30 35 . . . . Flight 2 | . 2 . . . . . Fastest Speed 100 | 100 100 105 110 110 100 100 Average Speed 131 | 100 207 214 110 110 110 131 Slowest Speed 1810 | 100 1810 476 110 110 175 1450 Overloaded Moves . | . . . . . . . Propulsion Burnouts . | . . . . . . . Robots Hopped . | . . . . . . . Cave-ins Triggered . | . . . . . . . Exploration Rate (%) 39 | 2 47 19 14 89 87 20 Regions Visited 6 Branch Regions 3 Pre-discovered Areas . | . . . . . . . Known Exits Taken 3 | . . . 1 1 1 . Unknown Exits Taken 3 | 1 1 1 . . . . Scrap Searched . | . . . . . . . Spaces Dug . | . . . . . . . Terrain Destroyed 34 | . 8 . . . . 26 Melee . | . . . . . . . Projectile . | . . . . . . . AOE 34 | . 8 . . . . 26 Terrain Rammed . | . . . . . . . Walls Destroyed . | . . . . . . . Machines Disabled . | . . . . . . . Actions | -11 -10 -9 -9 -9 -8 -8 --------- Run | Yrd Mat Mat Min Exi Min Mat Total 2332 | 6 255 159 101 1008 552 251 Wait 60 | . 14 . . . 15 31 Move 1668 | . 201 123 95 594 489 166 Hop . | . . . . . . . Pick Up 11 | . 3 1 1 1 2 3 Fast Attach 12 | . 2 4 . . 3 3 Attach 9 | . . . 3 . 2 4 Detach . | . . . . . . . Swap 30 | 2 10 5 1 . 2 10 Drop 7 | 4 2 1 . . . . Fire 130 | . 23 24 . 13 38 32 Melee . | . . . . . . . Ram 5 | . . 1 1 . 1 2 Kick . | . . . . . . . Crush . | . . . . . . . Escape Stasis . | . . . . . . . Rewire 400 | . . . . 400 . . Trap . | . . . . . . . Miscellaneous . | . . . . . . . Route ------- -11/Scrapyard -10/Materials -9/Materials -9/Mines (discovered 2 exits: *Mat / *Exi) -9/Exiles -8/Mines (discovered 2 exits: *Mat x2) -8/Materials History --------- Turn | Location | Event 7 | -11/Scrapyard | Discovered new exit (range 0) 7 | -11/Scrapyard | Entered Materials 321 | -10/Materials | Discovered new exit (range 7) 336 | -10/Materials | Build established: Mutant 524 | -10/Materials | Entered another Materials area 524 | -9/Materials | Evolved 2 slots: Propulsion x2 793 | -9/Materials | Discovered new exit (range 16) 876 | -9/Materials | Entered Mines 907 | -9/Mines | Lost 4 parts (1p1n2w) 916 | -9/Mines | Discovered new exit (range 11) 941 | -9/Mines | Deemed a non-threat by the Exiles lab entrance 941 | -9/Mines | Discovered new exit (range 5) 966 | -9/Mines | Identified exit to Materials 985 | -9/Mines | Identified exit to Exiles 988 | -9/Mines | Entered Exiles 988 | -9/Exiles | Found Exiles lab destroyed 1176 | -9/Exiles | Build established: Scavenger-Mutant 2070 | -9/Exiles | Discovered new exit (range 10) 2079 | -9/Exiles | Identified exit to Mines 2082 | -9/Exiles | Entered Mines 2082 | -8/Mines | Accompanied by 2 allies 2303 | -8/Mines | Lost 4 parts (3n1w) 2438 | -8/Mines | Discovered exit to Materials (range 5) 2730 | -8/Mines | Discovered exit to Materials (range 8) 2739 | -8/Mines | Entered Materials 2739 | -8/Materials | Evolved 2 slots: Utility x1, Weapon x1 3085 | -8/Materials | Core integrity fell below 50% 3104 | -8/Materials | Core integrity fell below 20% 3111 | -8/Materials | Destroyed by H-55 Commando with Gauss Rifle Last Messages --------------- 03074_ Matter Filter disabled. 03085_ R-06 Scavenger inserts Aluminum Leg into recycling unit. 03086_ Mni. Grenade Launcher destroyed. 03086_ Lgt. Angular Momentum Engine destroyed. 03088_ Grenade Launcher destroyed. 03088_ R-06 Scavenger inserts Aluminum Leg into recycling unit. 03095_ Penetrated by Slug. 03095_ Com. Wheel destroyed. 03099_ Penetrated by Slug. 03101_ Beam Cannon destroyed. 03102_ Penetrated by Slug. 03102_ Adv. Beam Rifle destroyed. 03105_ U-05 Engineer builds a Door. 03105_ Lgt. Assault Rifle destroyed. 03107_ R-06 Scavenger collects Imp. Sensor Array. 03108_ Penetrated by Slug. 03110_ U-05 Engineer lays Concrete. 03111_ Penetrated by Slug. Map ----- +----------------------------------------------------+ | ???????????????????????????????# # ##### | | ???????????????????????????????# """ """?# #???? | | ???????????????????????????????? """ """?# #???? | | ?????????????????????????????????""" ""??# #???? | | ????????????????????????????????? ??# #???? | | ??????????????????????????????????##?#???# #???? | | ?????????????????????????????????????????# #???? | | ?????????????????????????????????????????# ##### | | ?????????????????????????????????????????# ## | | ????????????????????????????????????????## | | ????????????????????????????????????????## = | | ????????????????????? ??????????????##### % | | ??????????????????###+#########?##### | | ???????????????? "T" *% # = | | ???????????????? % = | | ???????????????""" ! ? #+### | | ???????????????""" u %=#?############### ### | | ????????????????"% g r #??????# !# #?? | | ????????????????"" #??????# """ # #?? | | ????????????????"" g ######## """ ] # ### | | ???????????????""" g # """ + | | ??????????? """"" a # # | | ???????????? # """ ##### | | ????????????? # """ #???? | | ?????????????????? hu #?# """ #???? | | ???????????????????????# @ #?# #???? | | ???????????????????????#"" """ #?#+############ | | ???????????????????????#"Y """ #?# #??# | | ???????????????????????#"" """ ### #??# !!] | | ???????????????????????# u #??# !! | | ???????????????????????# #??# !]! | | ???????????????????????# #??# ] | | ???????????????????????##########+###+##?# *% | | ???????????????????????????#[ %! #?# [ | | ???????????????????????????# [ #?# ! | | ???????????????????????????# """ % #?######### | | ???????????????????????????# """ #?????????? | | ???????????????????????????# """ ! #?????????? | | ???????????????????????????# #?????????? | | ???????????????????????????#[ #?????????? | | ???????????????????????????#############?????????? | | | | | | | | | | | | | | | | | | | +----------------------------------------------------+ Best States ------------- Heat Dissipation 50 Energy Generation 18 Energy Capacity 250 Matter Stores 300 Matter Capacity 300 Sight Range 16 Robot Scan Range 14 Terrain Scan Density 85 Evasion (%) 40 Targeting Accuracy 8 Item Schematics ----------------- None Robot Schematics ------------------ None Fabricated ------------ Nothing Alien Tech Used ----------------- None Achievements -------------- A New Friend Challenges ------------ None Game ------ Seed GuidedIntegritySuperbattery Manual? 0 Play Time 00:20:46 Cumulative 24.8 hours Start 2024.09.20 @ 22:07:30 End 2024.09.20 @ 22:28:01 Sessions 1 Manual Loads 0 Difficulty Rogue Special Mode None Game No. 101 Rogue 97 Adventurer 4 Explorer 0 Win Type - Total 0 Types 0/0/0/0/0/0/0/0/0 Lore% 12 Gallery% 28 Achievement% 19 Wizard Run 0 Options --------- Layout 2 ASCII 0 Keyboard 0 Movement Mouse Keybinds 0 Fullscreen 1 Font 16/SmallcapsGlow Map View 55x47 Zoom Use 0% Tactical HUD 1 Map Filters NONE Filters NONE Steam 1 RUN: bf0c0bf7-d1fa-4a33-aca5-198fedc8ca18